bitfinex-derivatives/quotes_BTCF0:USTF0_20240917
["timestamp","ask_amount","ask_price","bid_price","bid_amount"]
[1726602702002,1.34954755,60023.0,60022.0,0.55629408]
[1726602702201,1.34954755,60023.0,60022.0,0.16692708]
[1726602702403,1.34954755,60023.0,60022.0,8e-08]
[1726602702703,1.26627555,60023.0,60022.0,8e-08]
[1726602703098,1.34954755,60023.0,60022.0,8e-08]
[1726602704601,0.74954755,60023.0,60022.0,8e-08]
[1726602705695,1.34954755,60023.0,60022.0,8e-08]
[1726602705905,0.74954755,60023.0,60022.0,8e-08]
[1726602706117,0.749616,60023.0,60022.0,8e-08]
[1726602707112,0.083295,60006.0,60005.0,0.13254627]
[1726602707407,0.0833,60003.0,60002.0,0.3608]
[1726602707597,0.0833,60003.0,60002.0,0.54290386]
[1726602708204,0.04161937,60003.0,60002.0,0.75257848]
[1726602708405,0.12491937,60003.0,60002.0,0.75257848]
[1726602708606,0.08579124,60010.0,60002.0,0.75257848]
[1726602708607,0.00250024,60010.0,60006.0,0.083295]
[1726602708905,0.00250024,60010.0,60009.0,0.3608]
[1726602709110,0.08579024,60010.0,60009.0,0.75254911]
[1726602709508,0.08559024,60010.0,60009.0,0.90165816]
[1726602710103,0.03551411,60013.0,60009.0,0.91822015]
[1726602710301,0.083277,60019.0,60011.0,0.3608]
[1726602710601,0.083283,60015.0,60014.0,0.14912225]
[1726602710811,0.083283,60015.0,60014.0,0.39172662]
[1726602711712,0.166566,60015.0,60014.0,0.39172662]
[1726602711911,0.166566,60015.0,60014.0,0.54089527]
[1726602712306,0.166566,60015.0,60014.0,0.54623596]
[1726602712821,0.083273,60022.0,60015.0,0.083283]
[1726602713006,0.083273,60022.0,60011.0,0.60975904]
[1726602713007,0.083254,60037.0,60021.0,0.8008]
[1726602713206,0.083273,60022.0,60021.0,0.8008]
[1726602713515,0.083273,60022.0,60021.0,0.90693999]
[1726602714113,0.083273,60022.0,60021.0,0.69733007]
[1726602714507,0.083273,60022.0,60021.0,0.69734439]
[1726602715108,0.166546,60022.0,60021.0,0.69734439]
[1726602715505,0.083269,60025.0,60021.0,1.22061939]
[1726602715807,0.00249904,60033.0,60022.0,0.33654439]
[1726602716011,0.16901504,60033.0,60032.0,0.3608]
[1726602716213,0.166516,60033.0,60032.0,0.3608]
[1726602716413,0.166516,60033.0,60028.0,0.00249875]
[1726602716414,0.083263,60029.0,60028.0,0.00249875]
[1726602716719,0.00249925,60037.0,60028.0,0.00249875]
[1726602716910,0.00249925,60037.0,60035.0,0.3608]
[1726602717223,0.08575125,60037.0,60036.0,0.3608]
[1726602717716,0.00249925,60037.0,60036.0,0.444054]
[1726602717919,0.00249925,60037.0,60036.0,0.3608]
[1726602718224,0.08575125,60037.0,60036.0,0.3608]
[1726602718918,0.08575125,60037.0,60029.0,0.0662962]
[1726602718919,2.06948325,60037.0,60030.0,0.0662962]
[1726602719224,0.083279,60018.0,60017.0,0.3608]
[1726602719524,0.00249975,60027.0,60019.0,0.083277]
[1726602719716,0.00249975,60027.0,60023.0,0.3608]
[1726602719717,0.08327,60024.0,60023.0,0.3608]
[1726602720018,0.08327,60024.0,60013.0,0.00249945]
[1726602720019,0.083284,60014.0,60013.0,0.00249945]
[1726602720209,0.00249968,60018.0,60017.0,0.08328]
[1726602720613,0.08577868,60018.0,60017.0,0.08328]
[1726602720810,0.00249968,60018.0,60017.0,0.08328]
[1726602721018,0.083281,60017.0,60016.0,0.06626989]
[1726602721319,0.083281,60017.0,60013.0,0.06876934]
[1726602721523,0.00249975,60027.0,60013.0,0.06876934]
[1726602721822,0.3608,60024.0,60015.0,0.06626989]
[1726602722023,0.3608,60024.0,60023.0,0.083272]
[1726602722212,0.083276,60020.0,60018.0,0.14954789]
[1726602722413,0.3608,60024.0,60018.0,0.06626989]
[1726602723114,0.3608,60024.0,60019.0,0.28140876]
[1726602723309,0.083275,60021.0,60020.0,0.6730731]
[1726602723624,0.083275,60021.0,60020.0,0.83899681]
[1726602723625,0.52735,60021.0,60020.0,0.83899681]
[1726602723923,0.444075,60021.0,60020.0,0.6730731]
[1726602724524,0.443995,60021.0,60020.0,0.6730731]
[1726602724717,0.3608,60021.0,60020.0,0.7563713]
[1726602725025,0.444075,60021.0,60020.0,0.6730953]
[1726602725415,0.36073282,60021.0,60020.0,0.6730953]
[1726602725910,0.27745782,60021.0,60020.0,1.3563713]
[1726602726114,0.22745501,60021.0,60020.0,2.02218006]
[1726602726323,0.00249975,60027.0,60020.0,2.1337353]
[1726602726523,0.00249975,60027.0,60026.0,0.083268]
[1726602726821,0.3608,60036.0,60034.0,0.083255]
[1726602727036,0.444055,60036.0,60035.0,0.8224497]
[1726602727323,0.444055,60036.0,60035.0,0.46339475]
[1726602728228,0.444055,60036.0,60035.0,0.28136988]
[1726602729323,0.444055,60036.0,60030.0,0.1161402]
[1726602729324,0.3608,60036.0,60033.0,0.08295351]
[1726602729528,0.083256,60034.0,60033.0,0.08295351]
[1726602729830,0.3608,60036.0,60032.0,0.08295351]
[1726602729831,0.083258,60033.0,60032.0,0.08295351]
[1726602730016,0.3608,60036.0,60035.0,0.083255]
[1726602730422,0.3608,60052.0,60036.0,0.49972]
[1726602730724,0.3608,60052.0,60031.0,0.08326]
[1726602730725,0.0546,60051.0,60047.0,0.3608]
[1726602731044,0.083237,60048.0,60047.0,0.3608]
[1726602731718,0.0546,60052.0,60047.0,0.444038]
[1726602732219,0.083237,60048.0,60047.0,0.3608]
[1726602732420,0.166474,60048.0,60047.0,0.3608]
[1726602732629,0.083245,60042.0,60039.0,0.00249834]
[1726602732830,0.3608,60049.0,60039.0,0.00249834]
[1726602732831,0.166496,60040.0,60039.0,0.00249834]
[1726602733020,0.083248,60040.0,60039.0,0.00249834]
[1726602733220,0.00249864,60044.0,60039.0,0.00249834]
[1726602733430,0.083248,60040.0,60039.0,0.00249834]
[1726602735833,0.00249864,60044.0,60041.0,0.083247]
[1726602736043,0.083244,60043.0,60041.0,0.083247]
[1726602736228,0.00249864,60044.0,60043.0,0.083244]
[1726602736533,0.08574164,60044.0,60043.0,0.083244]
[1726602736733,0.00249864,60044.0,60043.0,0.083244]
[1726602737026,0.083248,60040.0,60039.0,0.00249834]
[1726602737332,0.3608,60035.0,60004.0,0.083297]
[1726602737629,0.3608,60035.0,60002.0,0.3608]
[1726602737630,0.8008,60019.0,60002.0,0.3608]
[1726602737818,0.8008,60012.0,60002.0,0.3608]
[1726602738024,0.3608,60012.0,60002.0,0.3608]
[1726602738418,0.083303,60007.0,60002.0,0.3608]
[1726602738926,0.083303,60007.0,59992.0,0.00250033]
[1726602738927,0.3608,60007.0,59992.0,0.00250033]
[1726602739123,0.083308,60003.0,59992.0,0.00250033]
[1726602739433,0.3608,59999.0,59992.0,0.00234033]
[1726602740434,0.083304,60006.0,59992.0,0.00234033]
[1726602740634,0.3608,60008.0,59996.0,0.3608]
[1726602740935,0.083308,60003.0,59996.0,0.3608]
[1726602741130,0.3608,60008.0,59996.0,0.3608]
[1726602741431,0.083316,59997.0,59996.0,0.3608]
[1726602742525,0.3608,59999.0,59992.0,0.00234033]
[1726602742730,0.00250072,60000.0,59994.0,0.3608]
[1726602742924,0.083316,59997.0,59992.0,0.00234033]
[1726602743125,0.083318,59996.0,59992.0,0.00234033]
[1726602744231,0.00250072,60000.0,59992.0,0.00234033]
[1726602744232,0.523322,59993.0,59992.0,0.00234033]
[1726602744431,0.44,59999.0,59992.0,0.00234033]
[1726602744729,0.083322,59993.0,59992.0,0.00234033]
[1726602745233,0.083322,59993.0,59974.0,0.3608]
[1726602745234,0.44,59993.0,59974.0,0.3608]
[1726602745423,0.083335,59984.0,59981.0,0.083338]
[1726602745630,0.002501,59989.0,59980.0,0.3608]
[1726602745827,0.083337,59982.0,59980.0,0.3608]
[1726602746022,0.083338,59981.0,59980.0,0.3608]
[1726602746328,1.30096,59981.0,59967.0,0.06635603]
[1726602746631,1.30096,59981.0,59950.0,0.08338]
[1726602746632,0.8008,59968.0,59956.0,0.06635603]
[1726602746833,0.8008,59968.0,59967.0,0.083358]
[1726602747334,0.00250171,59971.0,59970.0,0.083354]
[1726602747636,0.002501,59989.0,59969.0,0.06635603]
[1726602747933,0.44,59984.0,59968.0,0.42715603]
[1726602748134,0.44,59984.0,59981.0,0.083338]
[1726602748528,0.523335,59984.0,59975.0,0.00250103]
[1726602748922,0.44,59984.0,59975.0,0.00250103]
[1726602749225,0.002501,59989.0,59988.0,0.083329]
[1726602749431,0.002501,59989.0,59988.0,0.967458]
[1726602750439,0.00250072,60000.0,59999.0,0.083313]
[1726602751027,0.00250072,60000.0,59999.0,0.166626]
[1726602751333,0.3608,60015.0,60010.0,0.083298]
[1726602751548,0.44,60024.0,60010.0,0.083298]
[1726602751928,0.44,60024.0,60010.0,0.444098]
[1726602752233,1.05296882,60011.0,59999.0,0.06635603]
[1726602752427,0.083302,60007.0,59993.0,0.3608]
[1726602752626,0.80413993,60011.0,59993.0,0.3608]
[1726602752933,0.36329993,60011.0,60004.0,0.083306]
[1726602753129,0.36329993,60011.0,59993.0,0.3608]
[1726602753334,0.321615,60011.0,60003.0,0.083307]
[1726602754240,0.404913,60011.0,60003.0,0.083307]
[1726602754735,0.404913,60011.0,60000.0,0.3608]
[1726602754736,0.321615,60011.0,60000.0,0.3608]
[1726602754926,0.321615,60011.0,60000.0,0.42715603]
[1726602755436,0.321615,60011.0,60005.0,0.083304]
[1726602755642,0.321615,60011.0,60008.0,0.083301]
[1726602756026,0.321615,60011.0,60005.0,0.3608]
[1726602756222,0.3608,60021.0,60005.0,0.3608]
[1726602756223,0.3608,60040.0,60010.0,0.3608]
[1726602756525,0.4154,60040.0,60025.0,0.3608]
[1726602756829,0.4154,60040.0,60032.0,0.3608]
[1726602757234,0.0546,60040.0,60032.0,0.3608]
[1726602757435,0.083257,60040.0,60032.0,0.3608]
[1726602757629,0.05709897,60042.0,60032.0,0.3608]
[1726602757630,0.083259,60039.0,60032.0,0.3608]
[1726602757935,0.083264,60035.0,60032.0,0.3608]
[1726602758135,0.44,60041.0,60032.0,0.3608]
[1726602758635,0.083266,60033.0,60032.0,0.3608]
[1726602759138,0.083261,60038.0,60032.0,0.3608]
[1726602759435,0.05709897,60042.0,60032.0,0.3608]
[1726602759636,0.083263,60036.0,60032.0,0.3608]
[1726602759837,0.05709897,60042.0,60032.0,0.3608]
[1726602760031,0.3608,60038.0,60032.0,0.3608]
[1726602760426,0.083261,60037.0,60032.0,0.444067]
[1726602760828,0.3608,60038.0,60032.0,0.444067]
[1726602760829,0.3608,60038.0,60032.0,0.3608]
[1726602761233,0.3608,60038.0,60037.0,0.083261]
[1726602761830,0.05709897,60042.0,60041.0,0.083255]
[1726602762726,0.05709897,60042.0,60037.0,0.3608]
[1726602762932,0.083257,60040.0,60037.0,0.08326]
[1726602763236,0.083257,60040.0,60033.0,0.3632985]
[1726602763237,0.083265,60034.0,60033.0,0.3632985]
[1726602765042,0.083265,60034.0,60033.0,0.0024985]
[1726602765532,1.543785,60034.0,60033.0,0.0024985]
[1726602766138,1.53972,60034.0,60022.0,0.3608]
[1726602766441,0.8008,60034.0,60022.0,0.3608]
[1726602766826,0.8008,60034.0,60021.0,0.00249899]
[1726602766827,0.083281,60022.0,60021.0,0.00249899]
[1726602767535,0.3608,60022.0,60012.0,0.3608]
[1726602767736,0.083293,60014.0,60012.0,0.3608]
[1726602767936,0.083293,60014.0,60007.0,0.083302]
[1726602768137,0.083295,60013.0,60007.0,0.083302]
[1726602768337,0.083283,60021.0,60007.0,0.083302]
[1726602768536,0.083295,60013.0,60007.0,0.083302]
[1726602768742,0.083297,60011.0,60007.0,0.083302]
[1726602769040,0.083297,60011.0,60002.0,0.3608]
[1726602769041,0.00249978,60015.0,60002.0,0.3608]
[1726602769247,0.00245978,60015.0,60002.0,0.3608]
[1726602769635,0.00245978,60015.0,60011.0,0.083297]
[1726602770439,0.00245978,60015.0,60007.0,0.3608]
[1726602770641,0.083297,60012.0,60007.0,0.3608]
[1726602770842,0.083301,60008.0,60002.0,0.3608]
[1726602771136,0.083312,60000.0,59994.0,0.44412]
[1726602771341,0.083309,60003.0,59994.0,0.3608]
[1726602771542,0.00250004,60005.0,60004.0,0.083306]
[1726602772244,0.00250004,60005.0,60004.0,0.527412]
[1726602772538,0.08328,60023.0,60014.0,0.083293]
[1726602772935,0.4154,60027.0,60012.0,0.083294]
[1726602773142,0.4154,60027.0,60020.0,0.083283]
[1726602773530,0.083281,60023.0,60020.0,0.083283]
[1726602773734,0.083283,60021.0,60009.0,0.44249963]
[1726602774037,0.083283,60021.0,60009.0,0.00249963]
[1726602774038,0.3608,60021.0,60009.0,0.00249963]
[1726602774345,0.3608,60021.0,60018.0,0.083286]
[1726602774835,0.08329,60016.0,60014.0,0.083292]
[1726602775034,0.3608,60021.0,60010.0,0.44]
[1726602775639,0.083284,60020.0,60010.0,0.44]
[1726602775851,0.083286,60019.0,60010.0,0.44]
[1726602776050,0.3608,60021.0,60018.0,0.083287]
[1726602777237,0.083287,60018.0,60016.0,0.08294647]
[1726602777439,0.083287,60018.0,60017.0,0.12694432]
[1726602777946,0.444083,60021.0,60018.0,0.083287]
[1726602778243,0.444083,60021.0,60018.0,0.16604259]
[1726602778244,0.083285,60020.0,60018.0,0.16604259]
[1726602778640,0.083285,60020.0,60019.0,0.08282331]
[1726602779044,0.083286,60019.0,60018.0,0.0662624]
[1726602779343,0.083291,60015.0,60014.0,0.08282331]
[1726602779543,0.3608,60016.0,60014.0,0.08288038]
[1726602779750,0.083293,60014.0,60013.0,0.08288038]
[1726602779944,0.083293,60014.0,60011.0,0.08288038]
[1726602780250,0.29,60014.0,60006.0,0.083303]
[1726602780445,0.083297,60011.0,60010.0,0.08288492]
[1726602780645,0.083298,60010.0,60008.0,0.08289864]
[1726602780852,0.083302,60007.0,60006.0,0.08289864]
[1726602781049,0.083305,60005.0,60004.0,0.07043642]
[1726602781248,0.083305,60005.0,59988.0,0.13273166]
[1726602781249,0.083307,60004.0,60002.0,0.06633259]
[1726602781549,1.21610798,60007.0,60000.0,0.06630056]
[1726602781550,0.083311,60001.0,60000.0,0.06630056]
[1726602781747,0.29,60001.0,59998.0,0.06630209]
[1726602781944,0.29,60001.0,59999.0,0.06630209]
[1726602781945,0.083312,60000.0,59999.0,0.06630209]
[1726602782341,1.183312,60000.0,59999.0,0.06627586]
[1726602783248,0.5,60000.0,59999.0,0.06627586]
[1726602783564,0.5,60000.0,59999.0,0.083313]
[1726602783749,0.00250047,60002.0,59995.0,0.00250019]
[1726602783952,0.3608,60012.0,60001.0,0.6508]
[1726602784145,0.3608,60012.0,60011.0,0.166594]
[1726602784339,0.00250007,60015.0,60014.0,0.083293]
[1726602784653,0.0546,60025.0,60018.0,0.083286]
[1726602784949,0.05709923,60026.0,60025.0,0.083277]
[1726602786057,1.15689923,60026.0,60018.0,0.00249925]
[1726602786250,0.05709923,60026.0,60018.0,0.08578625]
[1726602786751,0.08328,60023.0,60018.0,0.00249925]
[1726602787250,0.05709923,60026.0,60023.0,0.08328]
[1726602787557,0.05709923,60026.0,60025.0,0.083277]
[1726602793556,0.05709923,60026.0,60025.0,0.166554]
[1726602793750,0.00249857,60044.0,60043.0,0.083252]
[1726602798050,0.00249857,60044.0,60034.0,0.00249858]
[1726602798253,0.00249857,60044.0,60043.0,0.083252]
[1726602798579,0.08575057,60044.0,60034.0,0.00249858]
[1726602798943,0.08575057,60044.0,60040.0,0.083255]
[1726602799149,0.08575057,60044.0,60041.0,0.083255]
[1726602799552,0.08575057,60044.0,60034.0,0.00249858]
[1726602799553,0.083263,60035.0,60034.0,0.00249858]
[1726602799743,0.884063,60035.0,60034.0,0.00249858]
[1726602800447,0.00092,60067.0,60066.0,0.08322]
[1726602800649,0.3608,60077.0,60065.0,0.3608]
[1726602800952,0.44,60074.0,60065.0,0.3608]
[1726602801260,0.00249787,60076.0,60070.0,0.444014]
[1726602801459,0.00249787,60076.0,60070.0,0.3608]
[1726602802055,0.9394,60075.0,60070.0,0.3608]
[1726602802360,0.00249787,60076.0,60070.0,0.3608]
[1726602802857,0.00249787,60076.0,60071.0,0.083213]
[1726602803065,0.00249787,60076.0,60070.0,0.3608]
[1726602803864,0.00249787,60076.0,60070.0,0.444015]
[1726602804359,0.00249787,60076.0,60070.0,0.3608]
[1726602804563,0.00249787,60076.0,60075.0,0.3608]
[1726602804864,0.3608,60099.0,60075.0,0.3608]
[1726602805055,0.3608,60099.0,60093.0,0.3608]
[1726602805358,0.083162,60109.0,60093.0,0.443983]
[1726602805359,0.3608,60109.0,60093.0,0.443983]
[1726602805552,0.2062,60110.0,60093.0,0.443983]
[1726602806356,0.2062,60110.0,60093.0,0.3608]
[1726602806561,0.2062,60110.0,60107.0,0.3608]
[1726602806858,0.3608,60118.0,60101.0,0.3608]
[1726602806859,0.49908,60109.0,60101.0,0.3608]
[1726602807056,0.523159,60111.0,60106.0,0.3608]
[1726602807057,0.44,60111.0,60106.0,0.3608]
[1726602807252,0.3608,60113.0,60106.0,0.3608]
[1726602807460,0.00249607,60114.0,60106.0,0.3608]
[1726602808056,0.00249607,60114.0,60107.0,0.083164]
[1726602808260,0.00249607,60114.0,60113.0,0.29]
[1726602809262,0.00623514,60128.0,60114.0,0.083154]
[1726602809463,0.3608,60132.0,60109.0,0.0024951]
[1726602809464,0.29,60115.0,60109.0,0.0024951]
[1726602809856,0.083159,60111.0,60101.0,0.3608]
[1726602810164,0.29,60115.0,60097.0,0.3608]
[1726602810165,0.29,60103.0,60097.0,0.36329582]
[1726602810364,0.29,60098.0,60097.0,0.36329582]
[1726602810564,0.29,60098.0,60097.0,0.3608]
[1726602810768,0.29,60098.0,60088.0,0.3608]
[1726602810769,1.3892,60098.0,60088.0,0.3608]
[1726602811068,0.00249629,60094.0,60088.0,0.3608]
[1726602811855,0.00249629,60094.0,60093.0,0.3608]
[1726602812056,0.00249629,60094.0,60093.0,0.8008]
[1726602812263,0.00249663,60105.0,60093.0,1.1616]
[1726602812562,0.00249663,60105.0,60103.0,0.3608]
[1726602813370,0.3608,60118.0,60104.0,0.3608]
[1726602813864,0.083157,60112.0,60104.0,0.3608]
[1726602814359,0.3608,60118.0,60104.0,0.3608]
[1726602814360,0.44,60113.0,60104.0,0.3608]
[1726602814560,0.083158,60111.0,60104.0,0.3608]
[1726602814864,0.44,60116.0,60104.0,0.3608]
[1726602815065,0.083159,60111.0,60104.0,0.3608]
[1726602815758,0.44,60116.0,60104.0,0.3608]
[1726602815960,0.083161,60109.0,60104.0,0.3608]
[1726602816666,0.083166,60105.0,60104.0,0.3608]
[1726602817564,0.3608,60107.0,60096.0,0.00249598]
[1726602817758,0.083172,60101.0,60096.0,0.00249598]
[1726602817961,0.083172,60101.0,60100.0,0.3608]
[1726602818459,0.00249576,60105.0,60100.0,0.3608]
[1726602818859,0.44,60103.0,60096.0,0.00249598]
[1726602819056,0.44,60098.0,60096.0,0.00249598]
[1726602819267,0.083178,60097.0,60096.0,0.00249598]
[1726602819670,1.182378,60097.0,60096.0,0.00249598]
[1726602819861,1.182378,60097.0,60086.0,0.3608]
[1726602819862,1.46,60097.0,60086.0,0.3608]
[1726602820064,0.44,60087.0,60086.0,0.3608]
[1726602820369,0.44,60087.0,60069.0,0.33340852]
[1726602820370,0.083199,60082.0,60073.0,0.3608]
[1726602820560,0.24849063,60081.0,60079.0,0.08181517]
[1726602820770,0.24849063,60081.0,60076.0,0.08181517]
[1726602821066,0.24849063,60081.0,60079.0,0.3608]
[1726602821067,0.083201,60080.0,60079.0,0.3608]
[1726602821667,1.09932,60080.0,60074.0,0.08181517]
[1726602821873,0.523207,60076.0,60075.0,0.06567491]
[1726602822277,1.90016,60076.0,60075.0,0.0492944]
[1726602822574,1.53936,60076.0,60072.0,0.06572504]
[1726602822764,0.44,60076.0,60072.0,0.06572504]
[1726602823159,0.44,60076.0,60074.0,0.06572504]
[1726602823160,0.083208,60075.0,60074.0,0.06572504]
[1726602823576,0.083208,60075.0,60073.0,0.06572504]
[1726602823577,0.083209,60074.0,60073.0,0.06572504]
[1726602823772,0.523209,60074.0,60073.0,0.06572504]
[1726602824073,0.083215,60070.0,60069.0,0.08181517]
[1726602824276,0.00084,60074.0,60073.0,0.083211]
[1726602824473,0.44871005,60091.0,60073.0,0.12684479]
[1726602824669,0.44249681,60091.0,60079.0,0.444002]
[1726602824869,0.00249681,60091.0,60084.0,0.083195]
[1726602825068,0.443984,60092.0,60086.0,0.08223161]
[1726602825376,0.3608,60092.0,60088.0,0.08223161]
[1726602825669,0.429984,60092.0,60089.0,0.08223161]
[1726602825874,0.3468,60092.0,60089.0,0.08223161]
[1726602826071,0.44,60097.0,60090.0,0.48760597]
[1726602826266,0.00249674,60100.0,60095.0,0.08226654]
[1726602826267,0.083176,60099.0,60095.0,0.08226654]
[1726602826483,0.083176,60099.0,60096.0,0.08226654]
[1726602826672,0.00249674,60100.0,60096.0,0.08226654]
[1726602826969,0.00249674,60100.0,60097.0,0.12679072]
[1726602827176,0.00249674,60100.0,60098.0,0.12679072]
[1726602827369,0.00249674,60100.0,60099.0,0.12679072]
[1726602827571,0.08566974,60100.0,60099.0,0.12679072]
[1726602827769,1.18482974,60100.0,60099.0,0.12678734]
[1726602828376,1.26800474,60100.0,60099.0,0.12678734]
[1726602828586,1.265508,60100.0,60099.0,0.28111841]
[1726602829074,1.182333,60100.0,60099.0,0.28111841]
[1726602829266,1.196333,60100.0,60099.0,0.28111841]
[1726602829469,1.196333,60100.0,60099.0,0.28095841]
[1726602829671,1.182333,60100.0,60099.0,0.28095841]
[1726602829879,1.196333,60100.0,60099.0,0.28095841]
[1726602830278,0.014,60100.0,60099.0,0.39709861]
[1726602830576,0.014,60100.0,60099.0,0.46281794]
[1726602831470,0.097173,60100.0,60099.0,0.46281794]
[1726602832084,1.196333,60100.0,60099.0,0.46281794]
[1726602832273,0.083176,60098.0,60092.0,0.13273166]
[1726602832472,0.083187,60090.0,60088.0,0.13273166]
[1726602832780,0.80168485,60093.0,60085.0,0.00249647]
[1726602833079,0.80072484,60093.0,60085.0,0.00249647]
[1726602833472,0.00249681,60094.0,60085.0,0.00249647]
[1726602833473,0.00249681,60094.0,60093.0,0.083183]
[1726602833880,0.00249681,60094.0,60087.0,0.3608]
[1726602834376,0.00249681,60094.0,60093.0,0.443983]
[1726602834686,0.00249681,60094.0,60093.0,0.65337938]
[1726602834977,0.3608,60100.0,60093.0,0.57019638]
[1726602835183,0.3608,60100.0,60099.0,0.083175]
[1726602835582,0.08566428,60104.0,60093.0,0.3608]
[1726602835583,0.00249628,60104.0,60093.0,0.3608]
[1726602835983,0.00249628,60104.0,60099.0,0.3608]
[1726602836178,0.014,60100.0,60099.0,0.443975]
[1726602836574,0.01649628,60104.0,60099.0,0.443975]
[1726602836971,0.01649628,60104.0,60099.0,0.3608]
[1726602837176,0.083173,60100.0,60099.0,0.3608]
[1726602837684,0.01649628,60104.0,60099.0,0.3608]
[1726602837984,0.00249528,60127.0,60103.0,0.44]
[1726602838182,0.00249595,60117.0,60113.0,0.3608]
[1726602838692,0.00249595,60117.0,60116.0,0.083151]
[1726602839286,0.00249595,60117.0,60113.0,0.3608]
[1726602839484,0.01649595,60117.0,60113.0,0.3608]
[1726602840997,0.01649595,60117.0,60115.0,0.083152]
[1726602841292,0.01649595,60117.0,60116.0,0.083151]
[1726602841682,0.00249595,60117.0,60116.0,0.084151]
[1726602842388,0.083151,60116.0,60115.0,0.001]
[1726602842588,0.582191,60116.0,60115.0,0.001]
[1726602842794,0.24990531,60116.0,60088.0,0.3608]
[1726602842984,0.08318,60096.0,60088.0,0.3608]
[1726602843185,0.443982,60094.0,60086.0,0.083193]
[1726602843491,0.083186,60091.0,60080.0,0.0832]
[1726602843689,0.3608,60109.0,60090.0,0.8008]
[1726602843882,0.3608,60109.0,60100.0,0.3608]
[1726602844085,0.3608,60109.0,60096.0,0.002496]
[1726602844278,0.3608,60109.0,60104.0,0.083167]
[1726602844490,0.3608,60109.0,60106.0,0.083164]
[1726602844685,0.3598,60109.0,60106.0,0.083164]
[1726602845086,0.3668,60109.0,60107.0,0.083163]
[1726602845591,0.3668,60109.0,60108.0,0.083162]
[1726602846090,0.3718,60109.0,60108.0,0.083162]
[1726602846994,0.012,60109.0,60108.0,0.083162]
[1726602847791,0.083152,60116.0,60108.0,0.083162]
[1726602848087,0.00249595,60117.0,60108.0,0.083162]
[1726602848088,0.013,60109.0,60108.0,0.083162]
[1726602848592,0.013,60109.0,60108.0,0.001]
[1726602849094,0.443961,60109.0,60108.0,0.001]
[1726602849292,0.083178,60097.0,60087.0,0.443991]
[1726602849479,0.083178,60097.0,60087.0,0.3608]
[1726602849679,0.082178,60097.0,60087.0,0.3608]
[1726602849878,0.082178,60097.0,60090.0,0.083186]
[1726602850093,0.3608,60098.0,60087.0,0.3608]
[1726602850294,0.3608,60098.0,60097.0,0.083178]
[1726602850596,0.30502585,60102.0,60097.0,0.083178]
[1726602850893,0.083172,60101.0,60097.0,0.08271401]
[1726602851102,0.083174,60100.0,60097.0,0.08271401]
[1726602851309,0.083174,60100.0,60095.0,0.08271401]
[1726602851593,0.083172,60102.0,60096.0,0.29267152]
[1726602851796,0.083172,60102.0,60093.0,0.3608]
[1726602851797,0.3608,60104.0,60101.0,0.06612699]
[1726602851986,0.3598,60104.0,60103.0,0.06612699]
[1726602852188,0.3598,60104.0,60102.0,0.06612699]
[1726602852696,0.083169,60103.0,60102.0,0.06612699]
[1726602853090,0.082169,60103.0,60102.0,0.06612699]
[1726602853291,0.3738,60104.0,60101.0,0.06619852]
[1726602853292,0.083171,60102.0,60101.0,0.06619852]
[1726602853793,0.3608,60145.0,60101.0,1.02699852]
[1726602853984,0.3608,60145.0,60097.0,0.44]
[1726602853985,0.00084,60141.0,60131.0,0.083129]
[1726602854185,0.083114,60143.0,60132.0,0.04965006]
[1726602854393,0.25085979,60144.0,60139.0,0.3608]
[1726602854782,0.083115,60142.0,60140.0,0.04965006]
[1726602854984,0.083115,60142.0,60139.0,0.04965006]
[1726602855188,0.24784575,60144.0,60137.0,0.04965006]
[1726602855393,0.3608,60145.0,60138.0,0.04965006]
[1726602855593,0.014,60143.0,60140.0,0.41045006]
[1726602856093,0.014,60142.0,60140.0,0.41045006]
[1726602856392,0.00249477,60149.0,60142.0,0.083115]
[1726602856596,0.00249477,60149.0,60141.0,0.04956342]
[1726602856799,0.014,60143.0,60142.0,0.04956342]
[1726602856997,0.00249477,60149.0,60142.0,0.44]
[1726602857200,0.00249477,60149.0,60148.0,0.443907]
[1726602857494,0.3608,60158.0,60148.0,0.8008]
[1726602857697,0.3608,60196.0,60157.0,0.8008]
[1726602857991,0.083054,60187.0,60185.0,0.3608]
[1726602858194,0.083054,60187.0,60182.0,0.3608]
[1726602858394,0.24884449,60186.0,60182.0,0.3608]
[1726602858785,0.2498872,60190.0,60182.0,0.3608]
[1726602858995,0.00249309,60191.0,60182.0,0.3608]
[1726602859197,0.083052,60189.0,60187.0,0.3608]
[1726602859587,0.083059,60183.0,60182.0,0.001]
[1726602859788,0.443859,60183.0,60163.0,0.3608]
[1726602859984,0.24919974,60183.0,60168.0,0.8008]
[1726602860188,0.24919974,60183.0,60174.0,0.3608]
[1726602860488,0.24919974,60183.0,60179.0,0.3608]
[1726602861293,0.24919974,60183.0,60182.0,0.001]
[1726602861694,0.00249309,60191.0,60182.0,0.001]
[1726602861892,0.00249309,60191.0,60185.0,0.3608]
[1726602862201,0.25037473,60190.0,60186.0,0.44]
[1726602862391,0.00249309,60191.0,60185.0,0.3608]
[1726602863095,0.00249309,60191.0,60185.0,0.3618]
[1726602863599,0.083054,60187.0,60185.0,0.3618]
[1726602864095,0.083054,60187.0,60185.0,0.001]
[1726602864294,0.44,60186.0,60185.0,0.001]
[1726602864497,1.18742619,60186.0,60173.0,0.3608]
[1726602864693,0.68898619,60186.0,60173.0,0.3608]
[1726602864902,0.68898619,60186.0,60185.0,0.001]
[1726602865287,1.18742619,60186.0,60173.0,0.3608]
[1726602865489,0.33204119,60186.0,60185.0,0.001]
[1726602865698,0.77204119,60186.0,60185.0,0.001]
[1726602866002,1.27048119,60186.0,60185.0,0.001]
[1726602866296,0.33204119,60186.0,60185.0,0.001]
[1726602866491,0.33204119,60186.0,60178.0,0.3608]
[1726602866492,0.083056,60185.0,60178.0,0.3608]
[1726602866687,0.083057,60184.0,60178.0,0.3608]
[1726602866894,0.0033721,60202.0,60183.0,0.8008]